[Event "Titled Tuesday Blitz December 20 Late 2022"]
[White "reevecanada"]
[Black "Veiga, Jose Francisco R P Neves"]
[BlackFideId "1930087"]
[WhiteElo "2178"]
[BlackElo "2320"]
[Result "0-1"]
[Round "01"]
[TimeControl "180+1"]
[Date "2022.12.21"]
[WhiteClock "0:01:26"]
[BlackClock "0:00:49"]

1. e4 {[%clk 0:02:56]}  Nc6 {[%clk 0:02:58]} 2. d4 {[%clk 0:02:55]}  d5 {[%clk 0:02:58]} 3. exd5 {[%clk 0:02:56]}  Qxd5 {[%clk 0:02:58]} 4. Nf3 {[%clk 0:02:56]}  Bg4 {[%clk 0:02:58]} 5. Be2 {[%clk 0:02:56]}  O-O-O {[%clk 0:02:57]} 6. Be3 {[%clk 0:02:56]}  Nf6 {[%clk 0:02:57]} 7. c4 {[%clk 0:02:55]}  Qa5+ {[%clk 0:02:44]} 8. Nc3 {[%clk 0:02:54]}  e5 {[%clk 0:02:42]} 9. d5 {[%clk 0:02:53]}  Bb4 {[%clk 0:02:29]} 10. Bd2 {[%clk 0:02:49]}  e4 {[%clk 0:02:23]} 11. Ng1 {[%clk 0:02:44]}  Bxe2 {[%clk 0:02:18]} 12. Ngxe2 {[%clk 0:02:45]}  Ne5 {[%clk 0:02:17]} 13. O-O {[%clk 0:02:43]}  Nxc4 {[%clk 0:02:17]} 14. Bf4 {[%clk 0:02:41]}  Nxd5 {[%clk 0:02:13]} 15. Nxd5 {[%clk 0:02:38]}  Qxd5 {[%clk 0:02:09]} 16. Qa4 {[%clk 0:02:36]}  a5 {[%clk 0:01:51]} 17. a3 {[%clk 0:02:32]}  Nb6 {[%clk 0:01:49]} 18. Qc2 {[%clk 0:02:31]}  Bd6 {[%clk 0:01:49]} 19. Rfd1 {[%clk 0:02:25]}  Qe6 {[%clk 0:01:42]} 20. Nd4 {[%clk 0:02:22]}  Qc4 {[%clk 0:01:35]} 21. Qxe4 {[%clk 0:02:21]}  Kb8 {[%clk 0:01:22]} 22. Rac1 {[%clk 0:02:19]}  Qd5 {[%clk 0:01:22]} 23. Nc6+ {[%clk 0:02:16]}  bxc6 {[%clk 0:01:22]} 24. Rxd5 {[%clk 0:02:16]}  cxd5 {[%clk 0:01:23]} 25. Qd4 {[%clk 0:02:15]}  f6 {[%clk 0:01:17]} 26. Rc6 {[%clk 0:02:13]}  Kb7 {[%clk 0:01:09]} 27. Rc3 {[%clk 0:02:09]}  c5 {[%clk 0:01:03]} 28. Rxc5 {[%clk 0:02:03]}  Bxc5 {[%clk 0:01:01]} 29. Qxc5 {[%clk 0:02:03]}  Rc8 {[%clk 0:01:01]} 30. Qxa5 {[%clk 0:02:02]}  Rc4 {[%clk 0:00:57]} 31. Be3 {[%clk 0:02:01]}  d4 {[%clk 0:00:57]} 32. Bd2 {[%clk 0:01:59]}  Re8 {[%clk 0:00:50]} 33. g3 {[%clk 0:01:53]}  Re5 {[%clk 0:00:47]} 34. Qxe5 {[%clk 0:01:24]}  fxe5 {[%clk 0:00:47]} 35. b3 {[%clk 0:01:24]}  Rc2 {[%clk 0:00:47]} 36. Bb4 {[%clk 0:01:24]}  Nd5 {[%clk 0:00:46]} 37. Bd6 {[%clk 0:01:24]}  d3 {[%clk 0:00:46]} 38. Bxe5 {[%clk 0:01:25]}  d2 {[%clk 0:00:47]} 39. Bd4 {[%clk 0:01:24]}  d1=Q+ {[%clk 0:00:48]} 40. Kg2 {[%clk 0:01:25]}  Qxd4 {[%clk 0:00:48]} 41. Kf1 {[%clk 0:01:26]}  Qxf2# {[%clk 0:00:49]} 0-1


[Site "https://www.chess.com"]

[Event "Titled Tuesday Blitz December 20 Late 2022"]
[White "Abdrlauf, Elham"]
[Black "Sohal, Tanraj"]
[WhiteFideId "1533533"]
[BlackFideId "2608499"]
[WhiteElo "2454"]
[BlackElo "2203"]
[Result "1-0"]
[Round "02"]
[TimeControl "180+1"]
[Date "2022.12.21"]
[WhiteClock "0:00:04"]
[BlackClock "0:00:04"]

1. e4 {[%clk 0:03:00]}  c6 {[%clk 0:02:55]} 2. d4 {[%clk 0:03:00]}  d5 {[%clk 0:02:55]} 3. Nc3 {[%clk 0:03:01]}  dxe4 {[%clk 0:02:55]} 4. Nxe4 {[%clk 0:03:02]}  Nd7 {[%clk 0:02:56]} 5. Nf3 {[%clk 0:03:02]}  Ngf6 {[%clk 0:02:55]} 6. Nxf6+ {[%clk 0:03:02]}  Nxf6 {[%clk 0:02:55]} 7. h3 {[%clk 0:03:00]}  Bf5 {[%clk 0:02:55]} 8. Bd3 {[%clk 0:03:00]}  Bxd3 {[%clk 0:02:54]} 9. Qxd3 {[%clk 0:03:01]}  e6 {[%clk 0:02:52]} 10. Bd2 {[%clk 0:03:00]}  Qc7 {[%clk 0:02:50]} 11. O-O-O {[%clk 0:03:00]}  O-O-O {[%clk 0:02:51]} 12. Kb1 {[%clk 0:02:53]}  h6 {[%clk 0:02:46]} 13. Qe2 {[%clk 0:02:51]}  Bd6 {[%clk 0:02:43]} 14. c4 {[%clk 0:02:37]}  Kb8 {[%clk 0:02:42]} 15. Bc3 {[%clk 0:02:32]}  Rhe8 {[%clk 0:02:35]} 16. Ne5 {[%clk 0:02:23]}  Ka8 {[%clk 0:02:29]} 17. f4 {[%clk 0:02:09]}  a6 {[%clk 0:02:24]} 18. g4 {[%clk 0:02:08]}  c5 {[%clk 0:02:24]} 19. dxc5 {[%clk 0:02:01]}  Bxc5 {[%clk 0:02:22]} 20. g5 {[%clk 0:01:56]}  hxg5 {[%clk 0:02:17]} 21. fxg5 {[%clk 0:01:57]}  Ng8 {[%clk 0:02:17]} 22. Ng4 {[%clk 0:01:25]}  g6 {[%clk 0:02:03]} 23. Ne5 {[%clk 0:00:54]}  Bd6 {[%clk 0:01:17]} 24. Rhf1 {[%clk 0:00:46]}  Bxe5 {[%clk 0:01:17]} 25. Bxe5 {[%clk 0:00:47]}  Rxd1+ {[%clk 0:01:13]} 26. Rxd1 {[%clk 0:00:45]}  Qe7 {[%clk 0:01:13]} 27. Qd2 {[%clk 0:00:34]}  f6 {[%clk 0:00:53]} 28. gxf6 {[%clk 0:00:25]}  Nxf6 {[%clk 0:00:53]} 29. Qg5 {[%clk 0:00:20]}  Nd7 {[%clk 0:00:18]} 30. Bf4 {[%clk 0:00:07]}  Qxg5 {[%clk 0:00:11]} 31. Bxg5 {[%clk 0:00:08]}  Ne5 {[%clk 0:00:11]} 32. b3 {[%clk 0:00:07]}  b5 {[%clk 0:00:11]} 33. c5 {[%clk 0:00:07]}  Kb7 {[%clk 0:00:11]} 34. Bf4 {[%clk 0:00:06]}  Nc6 {[%clk 0:00:03]} 35. Rd7+ {[%clk 0:00:05]}  Ka8 {[%clk 0:00:04]} 36. Rc7 {[%clk 0:00:03]}  Nd4 {[%clk 0:00:04]} 37. Be5 {[%clk 0:00:02]}  Nf3 {[%clk 0:00:03]} 38. Bd6 {[%clk 0:00:03]}  Nd4 {[%clk 0:00:03]} 39. c6 {[%clk 0:00:02]}  e5 {[%clk 0:00:02]} 40. Kb2 {[%clk 0:00:01]}  Nf3 {[%clk 0:00:02]} 41. Kc3 {[%clk 0:00:01]}  Nd4 {[%clk 0:00:03]} 42. b4 {[%clk 0:00:01]}  Ne2+ {[%clk 0:00:03]} 43. Kd2 {[%clk 0:00:01]}  Nd4 {[%clk 0:00:04]} 44. Kd3 {[%clk 0:00:01]}  Nf5 {[%clk 0:00:04]} 45. Bc5 {[%clk 0:00:01]}  Rd8+ {[%clk 0:00:05]} 46. Ke4 {[%clk 0:00:02]}  Nd6+ {[%clk 0:00:04]} 47. Kxe5 {[%clk 0:00:02]}  Nc4+ {[%clk 0:00:03]} 48. Ke6 {[%clk 0:00:02]}  Kb8 {[%clk 0:00:04]} 49. Rd7 {[%clk 0:00:03]}  Re8+ {[%clk 0:00:04]} 50. Re7 {[%clk 0:00:03]}  Rc8 {[%clk 0:00:04]} 51. c7+ {[%clk 0:00:02]}  Kb7 {[%clk 0:00:05]} 52. Bd6 {[%clk 0:00:02]}  Nb6 {[%clk 0:00:05]} 53. Rf7 {[%clk 0:00:02]}  Nc4 {[%clk 0:00:05]} 54. Rf8 {[%clk 0:00:02]}  Rxf8 {[%clk 0:00:04]} 55. Bxf8 {[%clk 0:00:02]}  Kxc7 {[%clk 0:00:05]} 56. Kf6 {[%clk 0:00:02]}  a5 {[%clk 0:00:04]} 57. bxa5 {[%clk 0:00:01]}  Nxa5 {[%clk 0:00:05]} 58. Kxg6 {[%clk 0:00:02]}  Kd7 {[%clk 0:00:06]} 59. h4 {[%clk 0:00:02]}  Nc4 {[%clk 0:00:05]} 60. Bb4 {[%clk 0:00:03]}  Ke8 {[%clk 0:00:05]} 61. h5 {[%clk 0:00:02]}  Ne5+ {[%clk 0:00:05]} 62. Kg7 {[%clk 0:00:03]}  Nf7 {[%clk 0:00:05]} 63. a3 {[%clk 0:00:02]}  Nd8 {[%clk 0:00:02]} 64. h6 {[%clk 0:00:02]}  Ne6+ {[%clk 0:00:03]} 65. Kg8 {[%clk 0:00:02]}  Ng5 {[%clk 0:00:04]} 66. Bd2 {[%clk 0:00:02]}  Nf7 {[%clk 0:00:04]} 67. h7 {[%clk 0:00:02]}  Ke7 {[%clk 0:00:05]} 68. Bf4 {[%clk 0:00:02]}  Ke6 {[%clk 0:00:05]} 69. Bg3 {[%clk 0:00:02]}  Kf6 {[%clk 0:00:05]} 70. Bf2 {[%clk 0:00:02]}  Ke6 {[%clk 0:00:05]} 71. Be3 {[%clk 0:00:03]}  Kf6 {[%clk 0:00:05]} 72. Bf4 {[%clk 0:00:03]}  Ke6 {[%clk 0:00:05]} 73. Bg5 {[%clk 0:00:04]}  Nxg5 {[%clk 0:00:01]} 74. h8=Q {[%clk 0:00:04]}  Nf7 {[%clk 0:00:02]} 75. Qh3+ {[%clk 0:00:03]}  Ke7 {[%clk 0:00:03]} 76. Qe3+ {[%clk 0:00:03]}  Kd7 {[%clk 0:00:03]} 77. Kxf7 {[%clk 0:00:03]}  Kc6 {[%clk 0:00:03]} 78. Qd2 {[%clk 0:00:03]}  Kb7 {[%clk 0:00:04]} 79. Qb4 {[%clk 0:00:04]} 1-0


[Site "https://www.chess.com"]

[Event "Titled Tuesday Blitz December 20 Late 2022"]
[White "Acosta Cruz, Oscar Yosimar"]
[Black "Herman, Daniel"]
[WhiteFideId "5111269"]
[BlackFideId "30935008"]
[WhiteElo "2147"]
[BlackElo "1897"]
[Result "0-1"]
[Round "02"]
[TimeControl "180+1"]
[Date "2022.12.21"]
[WhiteClock "0:01:11"]
[BlackClock "0:00:47"]

1. e4 {[%clk 0:03:00]}  g6 {[%clk 0:03:00]} 2. d4 {[%clk 0:02:59]}  Bg7 {[%clk 0:03:00]} 3. Nc3 {[%clk 0:03:00]}  d6 {[%clk 0:03:00]} 4. f4 {[%clk 0:03:00]}  Nf6 {[%clk 0:02:58]} 5. Nf3 {[%clk 0:03:00]}  c5 {[%clk 0:02:48]} 6. e5 {[%clk 0:03:00]}  Nfd7 {[%clk 0:02:41]} 7. e6 {[%clk 0:02:59]}  fxe6 {[%clk 0:02:38]} 8. Ng5 {[%clk 0:02:51]}  Nf6 {[%clk 0:02:34]} 9. dxc5 {[%clk 0:02:49]}  h6 {[%clk 0:02:21]} 10. Bb5+ {[%clk 0:02:36]}  Nc6 {[%clk 0:02:20]} 11. Bxc6+ {[%clk 0:02:16]}  bxc6 {[%clk 0:02:20]} 12. Nge4 {[%clk 0:02:16]}  d5 {[%clk 0:01:46]} 13. Nf2 {[%clk 0:02:08]}  O-O {[%clk 0:01:42]} 14. O-O {[%clk 0:02:07]}  Rb8 {[%clk 0:01:33]} 15. Re1 {[%clk 0:02:06]}  Qa5 {[%clk 0:01:31]} 16. Nd3 {[%clk 0:02:00]}  Ba6 {[%clk 0:01:17]} 17. Ne5 {[%clk 0:01:53]}  Qxc5+ {[%clk 0:01:13]} 18. Be3 {[%clk 0:01:53]}  Qd6 {[%clk 0:01:08]} 19. Nxg6 {[%clk 0:01:51]}  Rfc8 {[%clk 0:01:01]} 20. Bd4 {[%clk 0:01:49]}  Rxb2 {[%clk 0:00:53]} 21. Na4 {[%clk 0:01:39]}  Rb4 {[%clk 0:00:52]} 22. Nc5 {[%clk 0:01:35]}  Rxd4 {[%clk 0:00:49]} 23. Qxd4 {[%clk 0:01:36]}  Ne4 {[%clk 0:00:48]} 24. Qa4 {[%clk 0:01:11]}  Nxc5 {[%clk 0:00:47]} 0-1


[Site "https://www.chess.com"]

[Event "Titled Tuesday Blitz December 20 Late 2022"]
[White "Ansh M Shah"]
[Black "Horvath, Dominik"]
[WhiteFideId "25033379"]
[BlackFideId "1642561"]
[WhiteElo "2084"]
[BlackElo "2405"]
[Result "0-1"]
[Round "02"]
[TimeControl "180+1"]
[Date "2022.12.21"]
[WhiteClock "0:00:01"]
[BlackClock "0:00:02"]

1. d4 {[%clk 0:03:00]}  Nf6 {[%clk 0:02:55]} 2. c4 {[%clk 0:03:01]}  g6 {[%clk 0:02:54]} 3. h4 {[%clk 0:03:02]}  c5 {[%clk 0:02:52]} 4. d5 {[%clk 0:03:01]}  Bg7 {[%clk 0:02:47]} 5. Nc3 {[%clk 0:03:01]}  e6 {[%clk 0:02:48]} 6. e4 {[%clk 0:03:01]}  exd5 {[%clk 0:02:46]} 7. exd5 {[%clk 0:03:02]}  O-O {[%clk 0:02:46]} 8. Be2 {[%clk 0:03:03]}  Re8 {[%clk 0:02:45]} 9. Kf1 {[%clk 0:03:01]}  h5 {[%clk 0:02:45]} 10. Bg5 {[%clk 0:02:58]}  d6 {[%clk 0:02:40]} 11. Nf3 {[%clk 0:02:58]}  Qb6 {[%clk 0:02:39]} 12. Rb1 {[%clk 0:02:48]}  Ne4 {[%clk 0:02:30]} 13. Nxe4 {[%clk 0:02:47]}  Rxe4 {[%clk 0:02:31]} 14. Bd3 {[%clk 0:02:47]}  Re8 {[%clk 0:02:31]} 15. Qc2 {[%clk 0:02:44]}  Kh7 {[%clk 0:01:59]} 16. Bf4 {[%clk 0:02:38]}  Bf6 {[%clk 0:01:48]} 17. Bg5 {[%clk 0:02:11]}  Bg7 {[%clk 0:01:40]} 18. Bd2 {[%clk 0:01:57]}  Qc7 {[%clk 0:01:37]} 19. Ng5+ {[%clk 0:01:56]}  Kg8 {[%clk 0:01:34]} 20. g3 {[%clk 0:01:07]}  Re7 {[%clk 0:00:59]} 21. Kg2 {[%clk 0:01:00]}  Nd7 {[%clk 0:00:59]} 22. f4 {[%clk 0:00:57]}  Nf6 {[%clk 0:00:58]} 23. Rbe1 {[%clk 0:00:55]}  Bg4 {[%clk 0:00:48]} 24. Rxe7 {[%clk 0:00:54]}  Qxe7 {[%clk 0:00:48]} 25. Re1 {[%clk 0:00:54]}  Qd7 {[%clk 0:00:49]} 26. Bc3 {[%clk 0:00:52]}  Re8 {[%clk 0:00:46]} 27. Bxf6 {[%clk 0:00:20]}  Bxf6 {[%clk 0:00:26]} 28. Bxg6 {[%clk 0:00:18]}  Rxe1 {[%clk 0:00:21]} 29. Bxf7+ {[%clk 0:00:16]}  Kf8 {[%clk 0:00:20]} 30. Qg6 {[%clk 0:00:10]}  Re2+ {[%clk 0:00:10]} 31. Kf1 {[%clk 0:00:10]}  Ke7 {[%clk 0:00:06]} 32. Nh7 {[%clk 0:00:10]}  Qf5 {[%clk 0:00:04]} 33. Nxf6 {[%clk 0:00:03]}  Qxg6 {[%clk 0:00:03]} 34. Ng8+ {[%clk 0:00:01]}  Kxf7 {[%clk 0:00:02]} 0-1


[Site "https://www.chess.com"]

[Event "Titled Tuesday Blitz December 20 Late 2022"]
[White "Araujo Sanchez, Josue"]
[Black "Bortnyk, Olexandr"]
[WhiteFideId "6416896"]
[BlackFideId "14120828"]
[WhiteElo "2370"]
[BlackElo "2723"]
[Result "1/2-1/2"]
[Round "02"]
[TimeControl "180+1"]
[Date "2022.12.20"]
[WhiteClock "0:00:44"]
[BlackClock "0:00:08"]

1. c4 {[%clk 0:03:00]}  d6 {[%clk 0:03:00]} 2. Nc3 {[%clk 0:03:00]}  e5 {[%clk 0:03:00]} 3. g3 {[%clk 0:03:01]}  g6 {[%clk 0:03:00]} 4. Bg2 {[%clk 0:03:01]}  Bg7 {[%clk 0:03:01]} 5. Nf3 {[%clk 0:03:00]}  Nc6 {[%clk 0:03:02]} 6. O-O {[%clk 0:03:00]}  Nge7 {[%clk 0:03:00]} 7. d3 {[%clk 0:03:00]}  O-O {[%clk 0:03:01]} 8. Rb1 {[%clk 0:03:01]}  a5 {[%clk 0:03:01]} 9. a3 {[%clk 0:03:01]}  f5 {[%clk 0:03:01]} 10. Nd2 {[%clk 0:02:56]}  Be6 {[%clk 0:03:00]} 11. Nd5 {[%clk 0:02:56]}  Bf7 {[%clk 0:02:58]} 12. b4 {[%clk 0:02:56]}  axb4 {[%clk 0:02:59]} 13. axb4 {[%clk 0:02:56]}  Nxd5 {[%clk 0:02:59]} 14. cxd5 {[%clk 0:02:54]}  Nd4 {[%clk 0:03:00]} 15. b5 {[%clk 0:02:47]}  f4 {[%clk 0:02:45]} 16. e3 {[%clk 0:02:41]}  Nf5 {[%clk 0:02:43]} 17. Nc4 {[%clk 0:02:35]}  fxg3 {[%clk 0:02:39]} 18. hxg3 {[%clk 0:02:33]}  b6 {[%clk 0:02:37]} 19. Bd2 {[%clk 0:02:30]}  h5 {[%clk 0:02:32]} 20. Kh2 {[%clk 0:02:16]}  Qd7 {[%clk 0:02:13]} 21. Bh3 {[%clk 0:02:07]}  Qe7 {[%clk 0:02:09]} 22. e4 {[%clk 0:02:06]}  Nd4 {[%clk 0:02:09]} 23. Be3 {[%clk 0:02:06]}  Ra2 {[%clk 0:02:07]} 24. Bxd4 {[%clk 0:02:05]}  exd4 {[%clk 0:02:08]} 25. Ra1 {[%clk 0:02:05]}  Rfa8 {[%clk 0:02:07]} 26. Rxa2 {[%clk 0:02:02]}  Rxa2 {[%clk 0:02:08]} 27. Qb3 {[%clk 0:02:02]}  Ra8 {[%clk 0:02:07]} 28. Qc2 {[%clk 0:01:51]}  h4 {[%clk 0:02:03]} 29. Nd2 {[%clk 0:01:50]}  Be5 {[%clk 0:01:58]} 30. Nf3 {[%clk 0:01:49]}  Kg7 {[%clk 0:01:59]} 31. Kg2 {[%clk 0:01:47]}  hxg3 {[%clk 0:01:56]} 32. fxg3 {[%clk 0:01:48]}  Bf6 {[%clk 0:01:48]} 33. Bg4 {[%clk 0:01:47]}  Be8 {[%clk 0:01:46]} 34. Rc1 {[%clk 0:01:44]}  Bxb5 {[%clk 0:01:43]} 35. Qxc7 {[%clk 0:01:40]}  Ra2+ {[%clk 0:01:44]} 36. Kh3 {[%clk 0:01:38]}  Bxd3 {[%clk 0:01:44]} 37. Qxb6 {[%clk 0:01:34]}  Qxe4 {[%clk 0:01:05]} 38. Qxd6 {[%clk 0:01:30]}  Re2 {[%clk 0:00:55]} 39. Rc7+ {[%clk 0:01:23]}  Be7 {[%clk 0:00:53]} 40. Qe6 {[%clk 0:01:15]}  Qxe6 {[%clk 0:00:44]} 41. Bxe6 {[%clk 0:01:16]}  Kf6 {[%clk 0:00:42]} 42. Nxd4 {[%clk 0:01:12]}  Rd2 {[%clk 0:00:38]} 43. Nf3 {[%clk 0:01:11]}  Rf2 {[%clk 0:00:36]} 44. Ne5 {[%clk 0:01:03]}  Bf1+ {[%clk 0:00:28]} 45. Kh4 {[%clk 0:00:54]}  g5+ {[%clk 0:00:23]} 46. Kg4 {[%clk 0:00:48]}  Be2+ {[%clk 0:00:23]} 47. Kh3 {[%clk 0:00:44]}  Bf1+ {[%clk 0:00:22]} 48. Kg4 {[%clk 0:00:44]}  Be2+ {[%clk 0:00:23]} 49. Kh3 {[%clk 0:00:45]}  Bf1+ {[%clk 0:00:08]} 50. Kg4 {[%clk 0:00:44]} 1/2-1/2


[Site "https://www.chess.com"]

[Event "Titled Tuesday Blitz December 20 Late 2022"]
[White "Ardila, Oscar Humberto"]
[Black "Mikhalsky, Vladimir"]
[WhiteFideId "4404742"]
[BlackFideId "14144352"]
[WhiteElo "1961"]
[BlackElo "2272"]
[Result "0-1"]
[Round "02"]
[TimeControl "180+1"]
[Date "2022.12.21"]
[WhiteClock "0:00:13"]
[BlackClock "0:01:32"]

1. d4 {[%clk 0:02:59]}  Nf6 {[%clk 0:02:59]} 2. c4 {[%clk 0:02:59]}  g6 {[%clk 0:02:59]} 3. Nc3 {[%clk 0:02:59]}  Bg7 {[%clk 0:03:00]} 4. Nf3 {[%clk 0:02:59]}  O-O {[%clk 0:03:00]} 5. e3 {[%clk 0:03:00]}  d6 {[%clk 0:03:01]} 6. Be2 {[%clk 0:03:00]}  Nc6 {[%clk 0:03:01]} 7. O-O {[%clk 0:02:59]}  e5 {[%clk 0:03:01]} 8. h3 {[%clk 0:02:53]}  Re8 {[%clk 0:02:56]} 9. d5 {[%clk 0:02:52]}  Ne7 {[%clk 0:02:53]} 10. e4 {[%clk 0:02:51]}  Nh5 {[%clk 0:02:51]} 11. Re1 {[%clk 0:02:29]}  h6 {[%clk 0:02:48]} 12. Bf1 {[%clk 0:02:26]}  Rf8 {[%clk 0:02:41]} 13. g4 {[%clk 0:02:17]}  Nf4 {[%clk 0:02:40]} 14. Bxf4 {[%clk 0:02:17]}  exf4 {[%clk 0:02:40]} 15. Qd2 {[%clk 0:02:17]}  g5 {[%clk 0:02:37]} 16. e5 {[%clk 0:02:16]}  dxe5 {[%clk 0:02:35]} 17. Nxe5 {[%clk 0:02:16]}  Ng6 {[%clk 0:02:34]} 18. Nxg6 {[%clk 0:02:09]}  fxg6 {[%clk 0:02:33]} 19. Bd3 {[%clk 0:02:09]}  h5 {[%clk 0:02:30]} 20. Bxg6 {[%clk 0:02:01]}  hxg4 {[%clk 0:02:30]} 21. hxg4 {[%clk 0:02:02]}  Bxg4 {[%clk 0:02:29]} 22. Qd3 {[%clk 0:01:59]}  Qf6 {[%clk 0:02:28]} 23. Bh7+ {[%clk 0:01:55]}  Kh8 {[%clk 0:02:27]} 24. f3 {[%clk 0:01:17]}  Bh3 {[%clk 0:02:20]} 25. Rad1 {[%clk 0:01:06]}  g4 {[%clk 0:02:14]} 26. Re6 {[%clk 0:00:55]}  Qh4 {[%clk 0:02:12]} 27. Ne2 {[%clk 0:00:22]}  gxf3 {[%clk 0:02:11]} 28. Qxf3 {[%clk 0:00:22]}  Bxe6 {[%clk 0:02:10]} 29. dxe6 {[%clk 0:00:21]}  Qxh7 {[%clk 0:02:09]} 30. Kg2 {[%clk 0:00:20]}  Qg6+ {[%clk 0:02:06]} 31. Kf2 {[%clk 0:00:20]}  Qxe6 {[%clk 0:02:03]} 32. Rh1+ {[%clk 0:00:20]}  Kg8 {[%clk 0:02:03]} 33. Qh5 {[%clk 0:00:19]}  f3 {[%clk 0:01:46]} 34. Qh7+ {[%clk 0:00:19]}  Kf7 {[%clk 0:01:47]} 35. Qh5+ {[%clk 0:00:19]}  Ke7 {[%clk 0:01:43]} 36. Qh4+ {[%clk 0:00:17]}  Bf6 {[%clk 0:01:42]} 37. Qh7+ {[%clk 0:00:14]}  Rf7 {[%clk 0:01:42]} 38. Nf4 {[%clk 0:00:13]}  Bd4+ {[%clk 0:01:36]} 39. Kxf3 {[%clk 0:00:13]}  Qe3+ {[%clk 0:01:32]} 40. Kg4 {[%clk 0:00:13]}  Qxf4+ {[%clk 0:01:32]} 0-1


[Site "https://www.chess.com"]

[Event "Titled Tuesday Blitz December 20 Late 2022"]
[White "Bach, Matthias"]
[Black "Matinian, Nikita"]
[WhiteFideId "4603168"]
[BlackFideId "24129100"]
[WhiteElo "2165"]
[BlackElo "2422"]
[Result "1/2-1/2"]
[Round "02"]
[TimeControl "180+1"]
[Date "2022.12.21"]
[WhiteClock "0:00:53"]
[BlackClock "0:00:47"]

1. d4 {[%clk 0:02:56]}  Nf6 {[%clk 0:02:59]} 2. c4 {[%clk 0:02:55]}  e6 {[%clk 0:03:00]} 3. Nc3 {[%clk 0:02:55]}  Bb4 {[%clk 0:03:00]} 4. Bg5 {[%clk 0:02:55]}  h6 {[%clk 0:03:00]} 5. Bh4 {[%clk 0:02:54]}  c5 {[%clk 0:03:00]} 6. d5 {[%clk 0:02:54]}  g5 {[%clk 0:02:57]} 7. Bg3 {[%clk 0:02:53]}  Ne4 {[%clk 0:02:56]} 8. Qd3 {[%clk 0:02:47]}  Qa5 {[%clk 0:02:52]} 9. Be5 {[%clk 0:02:46]}  f6 {[%clk 0:02:35]} 10. Qxe4 {[%clk 0:02:39]}  fxe5 {[%clk 0:02:35]} 11. Qxe5 {[%clk 0:02:36]}  Rf8 {[%clk 0:02:34]} 12. e4 {[%clk 0:02:21]}  d6 {[%clk 0:02:33]} 13. Qg7 {[%clk 0:02:18]}  Bxc3+ {[%clk 0:02:02]} 14. Qxc3 {[%clk 0:02:14]}  Qxc3+ {[%clk 0:02:01]} 15. bxc3 {[%clk 0:02:15]}  Nd7 {[%clk 0:01:59]} 16. Be2 {[%clk 0:02:01]}  Ke7 {[%clk 0:01:46]} 17. Nf3 {[%clk 0:01:56]}  Rf4 {[%clk 0:01:33]} 18. Nd2 {[%clk 0:01:54]}  Ne5 {[%clk 0:01:33]} 19. g3 {[%clk 0:01:49]}  Rf7 {[%clk 0:01:32]} 20. O-O {[%clk 0:01:46]}  g4 {[%clk 0:01:33]} 21. f4 {[%clk 0:01:40]}  gxf3 {[%clk 0:01:32]} 22. Nxf3 {[%clk 0:01:39]}  Nxf3+ {[%clk 0:01:33]} 23. Rxf3 {[%clk 0:01:38]}  Rxf3 {[%clk 0:01:32]} 24. Bxf3 {[%clk 0:01:38]}  e5 {[%clk 0:01:31]} 25. Bh5 {[%clk 0:01:33]}  Bd7 {[%clk 0:01:32]} 26. Rf1 {[%clk 0:01:32]}  Rf8 {[%clk 0:01:31]} 27. Rxf8 {[%clk 0:01:31]}  Kxf8 {[%clk 0:01:32]} 28. Kf2 {[%clk 0:01:30]}  Ke7 {[%clk 0:01:33]} 29. Ke3 {[%clk 0:01:30]}  Kf6 {[%clk 0:01:32]} 30. h4 {[%clk 0:01:29]}  Ba4 {[%clk 0:01:32]} 31. Kd3 {[%clk 0:01:27]}  a6 {[%clk 0:01:31]} 32. Bg4 {[%clk 0:01:22]}  b6 {[%clk 0:01:25]} 33. Bc8 {[%clk 0:01:21]}  a5 {[%clk 0:01:25]} 34. Bg4 {[%clk 0:01:20]}  Be8 {[%clk 0:01:23]} 35. Bf5 {[%clk 0:01:17]}  Bh5 {[%clk 0:01:09]} 36. g4 {[%clk 0:01:16]}  Be8 {[%clk 0:01:09]} 37. a3 {[%clk 0:01:14]}  Ba4 {[%clk 0:01:09]} 38. Bc8 {[%clk 0:01:11]}  Bd1 {[%clk 0:01:06]} 39. Ke3 {[%clk 0:01:10]}  Bb3 {[%clk 0:01:01]} 40. Ba6 {[%clk 0:01:08]}  Bc2 {[%clk 0:01:01]} 41. Kf3 {[%clk 0:01:01]}  Bd3 {[%clk 0:01:01]} 42. Ke3 {[%clk 0:00:59]}  Bf1 {[%clk 0:01:01]} 43. Bb5 {[%clk 0:00:57]}  Bg2 {[%clk 0:00:56]} 44. Ba6 {[%clk 0:00:56]}  Bh3 {[%clk 0:00:54]} 45. Bc8 {[%clk 0:00:56]}  Bf1 {[%clk 0:00:54]} 46. Ba6 {[%clk 0:00:55]}  Kg6 {[%clk 0:00:52]} 47. Bb5 {[%clk 0:00:54]}  Kf6 {[%clk 0:00:49]} 48. Ba6 {[%clk 0:00:53]}  Bh3 {[%clk 0:00:48]} 49. Bc8 {[%clk 0:00:53]}  Bf1 {[%clk 0:00:47]} 50. Ba6 {[%clk 0:00:53]} 1/2-1/2


[Site "https://www.chess.com"]